[Event "82nd Tata Steel Qualifiers 2020"]
[Site "Wijk aan Zee"]
[Date "2020.01.26"]
[Round "9.5"]
[White "Beerdsen, Thomas"]
[Black "Slingerland, Fred"]
[Result "1-0"]
[ECO "B67"]
[WhiteElo "2495"]
[BlackElo "2333"]
[Annotator "ChessBase"]
[PlyCount "75"]
[EventDate "2020.01.18"]
[EventCountry "NED"]
[SourceTitle "playchess.com"]
[Source "ChessBase"]
[SourceQuality "1"]
[TimeControl "40/6000+30:20/3000+30:900+30"]

1. e4 {[%emt 0:00:00]} c5 {[%emt 0:00:00]} 2. Nf3 {[%emt 0:00:00]} d6 {[%emt 0:00:00]} 3. d4 {[%emt 0:00:00]} cxd4 {[%emt 0:00:00]} 4. Nxd4 {[%emt 0:00:00]} Nf6 {[%emt 0:00:00]} 5. Nc3 {[%emt 0:00:00]} Nc6 {[%emt 0:00:00]} 6. Bg5 {[%emt 0:00:00]} e6 {[%emt 0:00:00]} 7. Qd2 {[%emt 0:00:14]} a6 {[%emt 0:00:02]} 8. O-O-O {[%emt 0:00:16]} Bd7 {[%emt 0:00:08]} 9. f4 {[%emt 0:00:15]} b5 {[%emt 0:00:04]} 10. Bxf6 {[%emt 0:00:26]} gxf6 {[%emt 0:00:04]} 11. Kb1 {[%emt 0:00:07]} Qb6 {[%emt 0:00:27]} 12. Nxc6 {[%emt 0:00:06]} Bxc6 {[%emt 0:00:02]} 13. f5 {[%emt 0:00:10]} Qc5 {[%emt 0:01:37]} 14. fxe6 {[%emt 0:03:10]} fxe6 {[%emt 0:00:03]} 15. Bd3 {[%emt 0:04:57]} O-O-O {[%emt 0:00:12]} 16. Rhf1 {[%emt 0:01:41]} Bg7 {[%emt 0:00:16]} 17. Ne2 {[%emt 0:00:53]} Rhe8 {[%emt 0:00:48]} 18. Nf4 {[%emt 0:01:47]} Kb8 {[%emt 0:03:40]} 19. Qa5 {[%emt 0:08:27]} Rd7 {[%emt 0:04:17]} 20. c3 {[%emt 0:01:07]} Bb7 {[%emt 0:00:20]} 21. Bc2 {[%emt 0:01:13]} Qc7 {[%emt 0:07:02]} 22. Qb4 {[%emt 0:01:36]} Bh6 {[%emt 0:06:20]} 23. Nh5 {[%emt 0:01:54]} Bg7 {[%emt 0:00:26]} 24. Nxf6 {[%emt 0:00:56]} Bxf6 {[%emt 0:00:11]} 25. Rxf6 {[%emt 0:00:05]} d5 {[%emt 0:01:13]} 26. Rf8 {[%emt 0:03:00]} Rxf8 {[%emt 0:00:35]} 27. Qxf8+ {[%emt 0:00:05]} Ka7 {[%emt 0:00:02]} 28. exd5 {[%emt 0:01:28]} Rxd5 {[%emt 0:00:12]} 29. Qf2+ {[%emt 0:03:33]} Ka8 {[%emt 0:00:36]} 30. Rxd5 {[%emt 0:00:19]} Bxd5 {[%emt 0:00:05]} 31. g3 {[%emt 0:04:16]} e5 {[%emt 0:01:20]} 32. Qf5 {[%emt 0:01:57]} Qc4 {[%emt 0:01:40]} 33. Kc1 {[%emt 0:02:07]} Qxa2 {[%emt 0:01:50]} 34. Qxe5 {[%emt 0:01:19]} Qc4 {[%emt 0:03:45]} 35. Bxh7 {[%emt 0:02:39]} b4 {[%emt 0:01:19]} 36. Kd2 {[%emt 0:10:41]} a5 {[%emt 0:02:15]} 37. Bd3 {[%emt 0:00:49]} Qb3 {[%emt 0:01:40]} 38. c4 {[%emt 0:01:40]} 1-0